bitfinex/quotes_SOLUSD_20241223
["timestamp","ask_amount","ask_price","bid_price","bid_amount"]
[1734990681830,0.6775194,191.3,191.27,21.66124296]
[1734990682034,0.6775194,191.3,191.29,21.66124296]
[1734990682746,0.6775194,191.3,191.26,21.66124296]
[1734990682919,0.6775194,191.3,191.25,21.66124296]
[1734990683319,21.66124296,191.27,191.21,0.12549]
[1734990683545,21.66124296,191.24,191.12,1.30352419]
[1734990683850,21.66124296,191.26,191.19,21.66124296]
[1734990684351,21.66124296,191.24,191.17,21.66124296]
[1734990684555,21.66124296,191.21,191.14,21.66124296]
[1734990684760,22.64201297,191.2,191.13,21.66124296]
[1734990685221,21.66124296,191.17,191.06,13.0842]
[1734990685418,22.64214883,191.16,191.09,21.66124296]
[1734990685618,21.66124296,191.14,191.06,21.66124296]
[1734990685843,21.66124296,191.12,191.05,21.66124296]
[1734990686050,21.66124296,191.08,190.98,34.046311]
[1734990686355,22.64259667,191.07,191.0,21.66124296]
[1734990686856,21.66124296,191.09,191.02,21.66124296]
[1734990687040,22.64264537,191.08,191.01,21.66124296]
[1734990687220,21.66124296,191.04,190.97,21.66124296]
[1734990687421,22.64289651,191.03,190.96,21.66124296]
[1734990687621,0.98165355,191.03,190.96,21.66124296]
[1734990688344,22.64289651,191.03,190.96,21.66124296]
[1734990688540,22.64289651,191.03,190.94,21.66124296]
[1734990688541,21.66124296,191.01,190.94,21.66124296]
[1734990688750,0.98181626,191.0,190.93,21.66124296]
[1734990689530,21.66124296,190.99,190.92,21.66124296]
[1734990689849,21.66124296,190.96,190.89,21.66124296]
[1734990690152,22.64334306,190.95,190.87,21.66124296]
[1734990690350,21.66124296,190.93,190.86,21.66124296]
[1734990690557,21.66124296,190.94,190.86,21.66124296]
[1734990690727,0.98217723,190.93,190.87,21.66124296]
[1734990690928,21.66124296,190.94,190.87,21.66124296]
[1734990691262,21.66124296,190.92,190.84,21.66124296]
[1734990691430,21.66124296,190.89,190.81,21.66124296]
[1734990691757,21.66124296,190.87,190.79,21.66124296]
[1734990691924,0.98252729,190.86,190.8,21.66124296]
[1734990692540,0.98252729,190.86,190.79,21.66124296]
[1734990692940,0.98252729,190.86,190.78,21.66124296]
[1734990692941,22.64377025,190.86,190.78,21.66124296]
[1734990693142,21.66124296,190.85,190.77,21.66124296]
[1734990693333,0.98262834,190.84,190.77,21.66124296]
[1734990695137,21.66124296,190.83,190.75,21.66124296]
[1734990695347,22.64405643,190.82,190.74,21.66124296]
[1734990695857,0.98281347,190.82,190.75,21.66124296]
[1734990696254,22.64405643,190.82,190.75,21.66124296]
[1734990697057,0.98281347,190.82,190.77,21.66124296]
[1734990697236,0.98279821,190.83,190.77,21.66124296]
[1734990699538,0.98269322,190.84,190.77,21.66124296]
[1734990699738,21.66124296,190.81,190.74,21.66124296]
[1734990699950,0.98283939,190.8,190.73,21.66124296]
[1734990700176,0.98283939,190.8,190.75,21.66124296]
[1734990700554,0.98280895,190.81,190.75,21.66124296]
[1734990701038,0.98280895,190.81,190.74,21.66124296]
[1734990701544,0.98280895,190.81,190.75,21.66124296]
[1734990701732,22.64405191,190.81,190.74,21.66124296]
[1734990702656,0.98280895,190.81,190.77,21.66124296]
[1734990702859,0.98277084,190.83,190.77,21.66124296]
[1734990703934,0.98277084,190.83,190.76,21.66124296]
[1734990705233,0.98277084,190.83,190.78,21.66124296]
[1734990705438,0.98268758,190.84,190.78,21.66124296]
[1734990705739,2.1144,190.86,190.8,21.66124296]
[1734990705933,0.98253753,190.85,190.8,21.66124296]
[1734990706164,0.98253753,190.85,190.79,21.66124296]
[1734990706365,2.1144,190.86,190.8,21.66124296]
[1734990706666,3.09693121,190.86,190.8,21.66124296]
[1734990706861,3.09693121,190.86,190.81,21.66124296]
[1734990707464,2.1144,190.86,190.81,21.66124296]
[1734990707691,2.1144,190.86,190.82,21.66124296]
[1734990707852,2.1144,190.86,190.81,21.66124296]
[1734990708053,0.98248795,190.85,190.79,21.66124296]
[1734990708265,22.64373091,190.85,190.77,21.66124296]
[1734990709070,22.64373091,190.85,190.75,0.12549]
[1734990709071,22.64373091,190.85,190.78,21.66124296]
[1734990709870,0.98248795,190.85,190.79,21.66124296]
[1734990710176,0.98248795,190.85,190.78,21.66124296]
[1734990710177,22.64373091,190.85,190.78,21.66124296]
[1734990711156,21.66124296,190.83,190.76,21.66124296]
[1734990711365,21.66124296,190.81,190.74,21.66124296]
[1734990711570,0.98285198,190.8,190.74,21.66124296]
[1734990711773,0.98284685,190.81,190.76,21.66124296]
[1734990711958,21.66124296,190.84,190.77,21.66124296]
[1734990712267,0.98268117,190.83,190.77,21.66124296]
[1734990712975,0.98268117,190.83,190.78,21.66124296]
[1734990713154,0.98267984,190.82,190.77,21.66124296]
[1734990713360,21.66124296,190.82,190.75,21.66124296]
[1734990713556,0.98284063,190.81,190.75,21.66124296]
[1734990713751,0.98284063,190.81,190.76,21.66124296]
[1734990713956,0.98284063,190.81,190.73,21.66124296]
[1734990713957,22.64408359,190.81,190.73,21.66124296]
[1734990714575,22.64408359,190.81,190.74,21.66124296]
[1734990715361,0.98284063,190.81,190.75,21.66124296]
[1734990715684,0.98284063,190.81,190.76,21.66124296]
[1734990715975,0.98275653,190.82,190.76,21.66124296]
[1734990716275,0.98275653,190.82,190.75,21.66124296]
[1734990716675,22.64399949,190.82,190.75,21.66124296]
[1734990717170,45.43812696,190.81,190.74,21.66124296]
[1734990717372,28.08064296,190.79,190.72,21.66124296]
[1734990717562,21.66124296,190.76,190.68,21.66124296]
[1734990717750,0.9831892,190.75,190.68,21.66124296]
[1734990718166,0.9831892,190.75,190.6,44.27944665]
[1734990718167,0.9831892,190.75,190.69,21.66124296]
[1734990718374,1.9874,190.74,190.69,21.66124296]
[1734990718677,0.98321753,190.73,190.69,21.66124296]
[1734990718881,0.98321753,190.73,190.68,21.66124296]
[1734990719171,9.39001099,190.79,190.72,21.66124296]
[1734990719367,9.39001099,190.79,190.74,21.66124296]
[1734990721379,9.39001099,190.79,190.73,21.66124296]
[1734990723381,21.66124296,190.77,190.7,21.66124296]
[1734990723675,22.64438442,190.76,190.68,21.66124296]
[1734990723877,21.66124296,190.74,190.66,21.66124296]
[1734990724060,21.66124296,190.7,190.63,22.33876236]
[1734990724275,28.12464296,190.68,190.63,0.6775194]
[1734990724574,21.66124296,190.66,190.63,0.6775194]
[1734990724774,0.9836283,190.65,190.63,0.6775194]
[1734990725768,0.98361907,190.66,190.63,0.6775194]
[1734990726161,22.64486203,190.66,190.63,0.6775194]
[1734990726762,41.66124296,190.64,190.63,0.6775194]
[1734990726972,42.64498416,190.64,190.63,0.6775194]
[1734990727166,0.9837412,190.64,190.63,0.6775194]
[1734990727372,1.974,190.67,190.63,0.6775194]
[1734990727373,24.6189829,190.67,190.63,0.6775194]
[1734990727589,1.974,190.67,190.63,22.33876236]
[1734990728077,0.98360102,190.7,190.65,21.66124296]
[1734990728263,6.4634,190.73,190.67,21.66124296]
[1734990728585,0.98319103,190.72,190.66,21.66124296]
[1734990728765,6.4634,190.73,190.66,21.66124296]
[1734990728964,7.44660449,190.73,190.66,21.66124296]
[1734990729375,6.4634,190.73,190.67,21.66124296]
[1734990729567,6.4634,190.73,190.68,21.66124296]
[1734990730270,0.983155,190.72,190.66,21.66124296]
[1734990730581,7.44666865,190.73,190.67,21.66124296]
[1734990730782,21.66124296,190.76,190.7,21.66124296]
[1734990730987,7.44658755,190.79,190.7,21.66124296]
[1734990730988,22.64432629,190.78,190.7,21.66124296]
[1734990731190,21.66124296,190.76,190.68,21.66124296]
[1734990731364,0.983115,190.75,190.68,21.66124296]
[1734990731681,22.64435796,190.75,190.67,21.66124296]
[1734990732061,21.66124296,190.72,190.65,21.66124296]
[1734990732276,0.98327643,190.71,190.65,21.66124296]
[1734990732785,21.66124296,190.72,190.65,21.66124296]
[1734990733663,21.66124296,190.73,190.65,21.66124296]
[1734990733864,0.98324188,190.72,190.65,21.66124296]
[1734990734289,10.4832,190.78,190.63,0.6775194]
[1734990734290,21.66124296,190.75,190.68,21.66124296]
[1734990734560,0.98312134,190.74,190.68,21.66124296]
[1734990734763,20.0,190.74,190.7,21.66124296]
[1734990734973,28.12464296,190.79,190.71,21.66124296]
[1734990735183,28.12464296,190.79,190.72,21.66124296]
[1734990736089,0.98289962,190.78,190.72,21.66124296]
[1734990736282,22.64414258,190.78,190.7,21.66124296]
[1734990737294,21.66124296,190.77,190.69,21.66124296]
[1734990737796,22.64414258,190.78,190.71,21.66124296]
[1734990737986,22.64414258,190.78,190.7,21.66124296]
[1734990738292,21.66124296,190.77,190.69,21.66124296]
[1734990738684,22.64414258,190.78,190.7,21.66124296]
[1734990740197,6.4634,190.79,190.72,21.66124296]
[1734990740394,7.4462735,190.79,190.72,21.66124296]
[1734990740706,6.4634,190.79,190.74,21.66124296]
[1734990741794,20.0,190.72,190.64,13.1137]
[1734990742001,21.66124296,190.7,190.63,0.6775194]
[1734990742384,21.66124296,190.68,190.63,0.6775194]
[1734990742695,21.66124296,190.66,190.63,0.6775194]
[1734990742893,0.98353997,190.65,190.63,0.6775194]
[1734990743200,21.66124296,190.64,190.63,0.6775194]
[1734990743570,6.4693,190.68,190.63,0.6775194]
[1734990743571,21.66124296,190.66,190.63,0.6775194]
[1734990743775,0.98357192,190.65,190.63,0.6775194]
[1734990744276,21.66124296,190.64,190.63,0.6775194]
[1734990747679,45.43812696,190.64,190.63,0.6775194]
[1734990749079,10.4915,190.63,190.51,21.66124296]
[1734990749382,21.66124296,190.59,190.51,21.66124296]
[1734990749702,0.98396451,190.58,190.51,21.66124296]
[1734990750608,21.66124296,190.61,190.53,21.66124296]
[1734990750778,0.98388335,190.63,190.56,21.66124296]
[1734990750973,0.98367734,190.63,190.56,21.66124296]
[1734990751197,21.66124296,190.64,190.57,21.66124296]
[1734990751393,22.64497005,190.66,190.58,21.66124296]
[1734990751589,28.13054296,190.68,190.6,21.66124296]
[1734990751881,22.64472481,190.67,190.59,21.66124296]
[1734990752079,21.66124296,190.66,190.58,21.66124296]
[1734990752285,22.64472481,190.67,190.59,21.66124296]
[1734990752723,21.66124296,190.66,190.59,21.66124296]
[1734990754006,0.98351484,190.65,190.59,21.66124296]
[1734990754303,0.9835924,190.67,190.59,21.66124296]
[1734990754500,21.66124296,190.66,190.59,21.66124296]
[1734990754689,0.98355218,190.65,190.59,21.66124296]
[1734990754891,21.66124296,190.66,190.59,21.66124296]
[1734990755291,28.13054296,190.68,190.61,21.66124296]
[1734990755678,6.4693,190.68,190.62,21.66124296]
[1734990757212,7.45270729,190.68,190.62,21.66124296]
[1734990757805,6.4693,190.68,190.62,21.66124296]
[1734990758008,7.4527,190.68,190.62,21.66124296]
[1734990758207,21.66124296,190.67,190.6,21.66124296]
[1734990758511,21.66124296,190.65,190.58,21.66124296]
[1734990758708,0.983628,190.64,190.58,21.66124296]
[1734990759008,6.4693,190.68,190.58,21.66124296]
[1734990759009,22.64487829,190.67,190.58,21.66124296]
[1734990759387,22.64487829,190.67,190.6,21.66124296]
[1734990763011,7.45291751,190.68,190.62,21.66124296]
[1734990763305,28.15344296,190.73,190.65,21.66124296]
[1734990763499,6.4922,190.73,190.67,21.66124296]
[1734990763704,21.66124296,190.72,190.65,21.66124296]
[1734990763896,0.98323579,190.71,190.65,21.66124296]
[1734990764099,0.98323579,190.71,190.63,21.66124296]
[1734990767230,21.66124296,190.68,190.6,21.66124296]
[1734990767415,6.4922,190.73,190.59,21.66124296]
[1734990767416,21.66124296,190.66,190.59,21.66124296]
[1734990767591,21.66124296,190.66,190.58,21.66124296]
[1734990767794,21.66124296,190.64,190.53,19.3987]
[1734990768102,21.66124296,190.62,190.55,21.66124296]
[1734990768513,21.66124296,190.64,190.57,21.66124296]
[1734990768713,21.66124296,190.67,190.59,21.66124296]
[1734990769015,21.66124296,190.68,190.61,21.66124296]
[1734990769225,21.66124296,190.69,190.62,21.66124296]
[1734990770409,21.66124296,190.67,190.6,21.66124296]
[1734990772021,21.66124296,190.67,190.56,13.1186]
[1734990772022,22.64474585,190.66,190.58,21.66124296]
[1734990772340,22.64474585,190.66,190.55,21.66124296]
[1734990772341,21.66124296,190.62,190.55,21.66124296]
[1734990772502,22.64497846,190.61,190.53,21.66124296]
[1734990772703,21.66124296,190.6,190.52,21.66124296]
[1734990773013,21.66124296,190.58,190.5,21.66124296]
[1734990773338,21.66124296,190.56,190.48,21.66124296]
[1734990773635,22.6453449,190.55,190.48,21.66124296]
[1734990773821,22.6453449,190.55,190.47,21.66124296]
[1734990774025,21.66124296,190.54,190.46,42.67920796]
[1734990774202,22.6454859,190.53,190.46,21.66124296]
[1734990774404,21.66124296,190.52,190.45,21.66124296]
[1734990774698,21.66124296,190.54,190.47,21.66124296]
[1734990774926,0.98421981,190.53,190.47,21.66124296]
[1734990775125,22.64546277,190.53,190.46,21.66124296]
[1734990775334,21.66124296,190.52,190.44,22.33876236]
[1734990775532,22.64558567,190.51,190.44,0.6775194]
[1734990775837,0.98434271,190.51,190.44,22.33876236]
[1734990778319,0.98434271,190.51,190.45,21.66124296]
[1734990778501,0.98442199,190.5,190.45,21.66124296]
[1734990778801,0.98440375,190.52,190.45,21.66124296]
[1734990780406,21.66124296,190.51,190.45,21.66124296]
[1734990780609,0.98443773,190.52,190.46,21.66124296]
[1734990781106,2.99459471,190.53,190.46,21.66124296]
[1734990781828,2.0103,190.53,190.48,21.66124296]
[1734990782229,2.0103,190.53,190.47,21.66124296]
[1734990782425,0.98423745,190.52,190.46,21.66124296]
[1734990782755,2.99454824,190.53,190.46,21.66124296]
[1734990783232,24.6557912,190.53,190.46,21.66124296]
[1734990784036,21.66124296,190.52,190.45,21.66124296]
[1734990784206,0.9844044,190.51,190.45,21.66124296]
[1734990784608,0.9844044,190.51,190.44,22.33876236]
[1734990784933,2.0103,190.53,190.49,21.66124296]
[1734990785236,6.3893,190.57,190.51,21.66124296]
[1734990785534,6.3893,190.57,190.52,21.66124296]
[1734990787108,22.64524359,190.56,190.49,21.66124296]
[1734990788136,0.98400063,190.56,190.5,21.66124296]
[1734990788335,6.3893,190.57,190.53,21.66124296]
[1734990788712,6.3893,190.57,190.52,21.66124296]
[1734990790126,3.0271339,190.58,190.45,13.25229]
[1734990790127,6.2046,190.61,190.54,21.66124296]
[1734990790415,6.2046,190.61,190.55,21.66124296]
[1734990790735,6.2046,190.61,190.54,21.66124296]
[1734990790915,0.98375688,190.62,190.55,21.66124296]
[1734990791126,2.0876,190.63,190.56,21.66124296]
[1734990791321,22.64496364,190.62,190.54,21.66124296]
[1734990791647,22.64496364,190.62,190.48,13.1244]
[1734990791648,21.66124296,190.59,190.52,21.66124296]
[1734990791811,0.98395842,190.58,190.52,21.66124296]
[1734990793134,0.98395217,190.58,190.53,21.66124296]
[1734990793435,21.66124296,190.56,190.49,21.66124296]
[1734990793732,21.66124296,190.54,190.47,21.66124296]
[1734990793938,21.66124296,190.54,190.41,2.0449]
[1734990793939,0.98422822,190.53,190.46,21.66124296]
[1734990794239,0.98423416,190.56,190.49,21.66124296]
[1734990794425,0.98423416,190.56,190.5,21.66124296]
[1734990795542,6.0292,190.57,190.53,21.66124296]
[1734990795919,6.5511,190.61,190.56,21.66124296]
[1734990796215,6.5511,190.61,190.46,23.902374]
[1734990796216,0.98381402,190.6,190.54,21.66124296]
[1734990796417,7.53500119,190.61,190.55,21.66124296]
[1734990796716,6.5511,190.61,190.56,21.66124296]
[1734990797128,6.5511,190.61,190.55,21.66124296]
[1734990797327,7.53486996,190.61,190.55,21.66124296]
[1734990797530,7.53486996,190.61,190.51,13.24779]
[1734990797531,29.19611292,190.61,190.53,21.66124296]
[1734990797818,29.19611292,190.61,190.54,21.66124296]
[1734990798842,29.19611292,190.61,190.53,21.66124296]
[1734990799349,29.19611292,190.61,190.54,21.66124296]
[1734990799529,6.5511,190.61,190.56,21.66124296]
[1734990799914,6.5511,190.61,190.51,13.24779]
[1734990799915,6.5511,190.61,190.55,21.66124296]
[1734990800525,3.07147163,190.63,190.57,21.66124296]
[1734990800728,2.0876,190.63,190.59,21.66124296]
[1734990801023,3.07122459,190.63,190.57,21.66124296]
[1734990801227,3.07122459,190.63,190.56,21.66124296]
[1734990801842,3.07122459,190.63,190.57,21.66124296]
[1734990802541,3.07122459,190.63,190.56,21.66124296]
[1734990802753,24.73246755,190.63,190.55,21.66124296]
[1734990803119,3.07122459,190.63,190.57,21.66124296]
[1734990803320,2.0876,190.63,190.58,21.66124296]
[1734990803626,6.0071,190.65,190.59,21.66124296]
[1734990803818,6.99066064,190.65,190.59,21.66124296]
[1734990804023,6.99066934,190.65,190.59,21.66124296]
[1734990804330,6.0071,190.65,190.59,21.66124296]
[1734990804739,2.0847,190.68,190.62,21.66124296]
[1734990805118,0.98341001,190.67,190.61,21.66124296]
[1734990805329,21.66124296,190.66,190.55,0.12549]
[1734990805530,21.66124296,190.61,190.54,21.66124296]
[1734990805727,21.66124296,190.58,190.51,21.66124296]
[1734990805929,0.98407048,190.57,190.51,21.66124296]
[1734990806747,21.66124296,190.58,190.51,21.66124296]
[1734990807039,0.98397513,190.57,190.51,21.66124296]
[1734990807560,0.98398891,190.57,190.51,21.66124296]
[1734990807734,21.66124296,190.59,190.52,21.66124296]
[1734990807930,6.3077,190.6,190.55,21.66124296]
[1734990808132,21.66124296,190.64,190.57,21.66124296]
[1734990808449,28.95270663,190.65,190.58,21.66124296]
[1734990808665,28.95270663,190.65,190.57,21.66124296]
[1734990810255,28.95270663,190.65,190.58,21.66124296]
[1734990810853,7.29146367,190.65,190.59,21.66124296]
[1734990811045,7.29146367,190.65,190.58,21.66124296]
[1734990811241,28.95270663,190.65,190.57,21.66124296]
[1734990811449,21.66124296,190.63,190.56,21.66124296]
[1734990811637,22.64507928,190.62,190.55,21.66124296]
[1734990812429,22.64507928,190.62,190.54,21.66124296]
[1734990812661,21.66124296,190.61,190.53,21.66124296]
[1734990812831,0.98393474,190.6,190.54,21.66124296]
[1734990813030,0.9838395,190.63,190.57,21.66124296]
[1734990813234,27.96894296,190.65,190.58,21.66124296]
[1734990813437,6.3077,190.65,190.59,21.66124296]
[1734990814155,6.3077,190.65,190.54,13.1203]
[1734990814156,0.98362255,190.64,190.57,21.66124296]
[1734990814366,21.66124296,190.62,190.54,21.66124296]
[1734990814529,21.66124296,190.6,190.53,21.66124296]
[1734990814862,0.98396704,190.59,190.53,21.66124296]
[1734990815456,21.66124296,190.62,190.54,21.66124296]
[1734990815631,0.98381638,190.61,190.55,21.66124296]
[1734990817257,0.98381638,190.61,190.54,21.66124296]
[1734990817755,0.98381638,190.61,190.55,21.66124296]
[1734990820295,21.66124296,190.58,190.51,21.66124296]
[1734990820548,0.98404406,190.57,190.51,21.66124296]
[1734990820940,0.98404406,190.57,190.5,21.66124296]
[1734990821657,0.98404406,190.57,190.51,21.66124296]
[1734990825665,23.64374296,190.62,190.54,21.66124296]
[1734990825837,0.98388812,190.61,190.54,21.66124296]
[1734990826039,22.64513108,190.61,190.53,21.66124296]
[1734990826238,14.53298008,190.61,190.53,13.54909196]
[1734990826860,14.53298008,190.61,190.54,13.54909196]
[1734990827659,0.98388812,190.61,190.54,13.54909196]
[1734990827961,13.54909196,190.6,190.52,13.54909196]
[1734990828136,0.98397257,190.59,190.52,13.54909196]
[1734990828469,14.53306453,190.59,190.51,13.54909196]
[1734990828762,13.54909196,190.57,190.5,13.54909196]
[1734990828944,0.98415062,190.56,190.5,13.54909196]
[1734990829143,14.53324258,190.56,190.49,13.54909196]
[1734990829463,14.53324258,190.56,190.48,13.54909196]
[1734990829659,13.54909196,190.55,190.48,13.54909196]
[1734990829962,0.98425138,190.54,190.48,13.54909196]
[1734990830334,14.53334334,190.54,190.46,13.54909196]
[1734990830542,13.54909196,190.5,190.44,0.6775194]
[1734990831161,14.53345428,190.49,190.44,0.6775194]
[1734990831387,13.54909196,190.48,190.44,0.6775194]
[1734990831666,13.54909196,190.49,190.44,0.6775194]
[1734990831975,0.984464,190.48,190.44,0.6775194]
[1734990832848,22.68924946,190.48,190.44,0.6775194]
[1734990833767,21.70478546,190.47,190.44,0.6775194]
[1734990833953,0.98463177,190.46,190.44,0.6775194]
[1734990834266,21.70478546,190.5,190.44,0.6775194]
[1734990834441,0.98444524,190.49,190.44,0.6775194]
[1734990834872,21.70478546,190.5,190.45,21.70478546]
[1734990834873,0.98442056,190.5,190.45,21.70478546]
[1734990835054,0.98434864,190.51,190.45,21.70478546]
[1734990836870,22.6891341,190.51,190.44,22.38230486]
[1734990840670,0.98434864,190.51,190.44,22.38230486]
[1734990841975,0.98434864,190.51,190.45,21.70478546]
[1734990842160,0.98434864,190.51,190.44,0.6775194]
[1734990842161,0.98434864,190.51,190.46,21.70478546]
[1734990842363,0.98434864,190.51,190.45,21.70478546]
[1734990843598,0.98434864,190.51,190.44,22.38230486]
[1734990844376,0.98434864,190.51,190.45,21.70478546]
[1734990845081,0.98434864,190.51,190.47,21.70478546]
[1734990845381,6.5815,190.55,190.5,21.70478546]
[1734990845570,0.98422119,190.59,190.53,21.70478546]
[1734990845983,22.68900665,190.59,190.52,21.70478546]
[1734990846686,0.98422119,190.59,190.53,21.70478546]
[1734990846858,0.98392059,190.6,190.54,21.70478546]
[1734990847063,6.0835,190.61,190.56,21.70478546]
[1734990847477,2.94237752,190.62,190.57,21.70478546]
[1734990847658,6.2806,190.66,190.59,21.70478546]
[1734990847993,28.96901924,190.66,190.59,21.70478546]
[1734990848161,1.9731,190.67,190.62,21.70478546]
[1734990848362,0.98348633,190.66,190.62,21.70478546]
[1734990848561,22.68832023,190.68,190.61,21.70478546]
[1734990848776,22.68831892,190.7,190.63,21.70478546]
[1734990849084,0.98353346,190.7,190.63,21.70478546]
[1734990849267,22.68831892,190.7,190.63,21.70478546]
[1734990849669,0.98353346,190.7,190.63,21.70478546]
[1734990850277,8.334,190.71,190.66,21.70478546]
[1734990850482,21.70478546,190.75,190.67,21.70478546]
[1734990850686,0.98315195,190.74,190.67,21.70478546]
[1734990851266,22.68793741,190.74,190.66,21.70478546]
[1734990851464,21.70478546,190.71,190.64,21.70478546]
[1734990851666,22.68817338,190.7,190.62,21.70478546]
[1734990851985,21.70478546,190.66,190.58,21.70478546]
[1734990852169,22.68843767,190.65,190.58,21.70478546]
[1734990852676,0.98365221,190.65,190.58,21.70478546]
[1734990853165,22.68843767,190.65,190.58,21.70478546]
[1734990853371,22.68843767,190.65,190.53,8.3757]
[1734990853372,21.70478546,190.63,190.56,21.70478546]
[1734990853685,0.98370564,190.62,190.56,21.70478546]
[1734990853888,0.98370564,190.62,190.57,21.70478546]
[1734990854186,0.98370564,190.62,190.57,13.54405906]
[1734990854589,14.52781531,190.63,190.56,13.54405906]
[1734990854772,0.98375625,190.63,190.56,13.54405906]
[1734990854968,0.98375625,190.63,190.57,13.54405906]
[1734990855169,8.3845,190.66,190.61,13.54405906]
[1734990855368,0.98372901,190.68,190.63,13.54405906]
[1734990855574,7.26653094,190.7,190.64,13.54405906]
[1734990855783,6.2831,190.7,190.65,13.54405906]
[1734990855993,2.1008,190.71,190.66,13.54405906]
[1734990856171,0.98325939,190.74,190.61,0.12549]
[1734990856374,0.98325939,190.72,190.66,13.54405906]
[1734990856570,14.52731845,190.72,190.64,13.54405906]
[1734990856770,14.52731845,190.72,190.65,13.54405906]
[1734990856998,0.98325939,190.72,190.65,13.54405906]
[1734990857170,0.98325939,190.72,190.66,13.54405906]
[1734990857991,0.98325939,190.72,190.65,13.54405906]
[1734990858285,21.65219105,190.7,190.62,21.65219105]
[1734990858484,0.98342352,190.69,190.62,21.65219105]
[1734990858702,22.63561457,190.69,190.62,21.65219105]
[1734990858871,22.63561457,190.69,190.61,21.65219105]
[1734990859395,23.59609105,190.66,190.58,21.65219105]
[1734990859564,21.65219105,190.64,190.56,21.65219105]
[1734990859765,0.98370968,190.63,190.56,21.65219105]
[1734990859965,22.63590073,190.63,190.56,21.65219105]
[1734990860979,21.65219105,190.62,190.54,21.65219105]
[1734990861162,0.98390112,190.61,190.54,21.65219105]
[1734990862165,21.65219105,190.6,190.52,21.65219105]
[1734990862506,21.65219105,190.57,190.49,21.65219105]
[1734990862670,21.65219105,190.55,190.47,21.65219105]
[1734990862870,0.9842962,190.54,190.47,21.65219105]
[1734990863368,28.02559105,190.53,190.45,21.65219105]
[1734990863590,21.65219105,190.51,190.45,21.65219105]
[1734990863768,0.9844238,190.5,190.45,21.65219105]
[1734990863965,0.9844238,190.5,190.44,0.6775194]
[1734990865891,0.98447349,190.52,190.46,21.65219105]
[1734990866101,0.98424473,190.52,190.46,21.65219105]
[1734990867270,21.65219105,190.48,190.44,0.6775194]
[1734990867471,0.98458452,190.47,190.44,0.6775194]
[1734990868592,22.63673678,190.5,190.44,0.6775194]
[1734990869202,21.65219105,190.48,190.44,0.6775194]
[1734990869506,0.98456782,190.47,190.44,0.6775194]
[1734990870095,0.98459173,190.5,190.44,22.32971045]
[1734990870275,7.35778613,190.53,190.48,21.65219105]
[1734990871199,7.35778613,190.53,190.46,21.65219105]
[1734990872584,29.00997718,190.53,190.44,0.6775194]
[1734990872776,21.65219105,190.51,190.44,22.32971045]
[1734990872977,0.98454241,190.5,190.44,0.6775194]
[1734990873177,21.65219105,190.49,190.44,0.6775194]
[1734990873396,0.98461591,190.48,190.44,0.6775194]
[1734990875903,0.98449521,190.5,190.44,0.6775194]
[1734990877203,22.63668626,190.5,190.44,0.6775194]
[1734990878705,0.98449521,190.5,190.44,22.32971045]
[1734990878905,0.98450399,190.49,190.44,22.32971045]
[1734990879097,0.98450309,190.51,190.44,22.32971045]
[1734990880796,22.63669414,190.51,190.44,22.32971045]
[1734990881197,22.63669414,190.51,190.44,0.6775194]
[1734990882203,21.65219105,190.49,190.44,0.6775194]
[1734990882402,0.98454267,190.48,190.44,0.6775194]
[1734990883081,0.98452137,190.5,190.44,0.6775194]
[1734990884507,0.98452137,190.5,190.46,21.65219105]
[1734990884679,0.98439193,190.51,190.46,21.65219105]
[1734990884881,6.3734,190.53,190.49,21.65219105]
[1734990885095,2.9455862,190.55,190.51,21.65219105]
[1734990885290,7.32102694,190.57,190.53,21.65219105]
[1734990885492,2.95069269,190.59,190.54,21.65219105]
[1734990885698,2.95069269,190.59,190.55,21.65219105]
[1734990885899,2.95069269,190.59,190.54,21.65219105]
[1734990886208,2.95069269,190.59,190.53,21.65219105]
[1734990886411,21.65219105,190.58,190.51,21.65219105]
[1734990886607,0.98416155,190.57,190.51,21.65219105]
[1734990887086,0.98416155,190.57,190.45,8.4322]
[1734990887087,22.6363526,190.57,190.49,21.65219105]
[1734990887288,21.65219105,190.56,190.49,21.65219105]
[1734990887505,0.98421002,190.55,190.49,21.65219105]
[1734990888209,0.98421002,190.55,190.51,21.65219105]
[1734990888509,20.0,190.58,190.53,21.65219105]
[1734990888687,2.95062601,190.59,190.53,21.65219105]
[1734990889210,1.9667,190.59,190.55,21.65219105]
[1734990889399,0.98387386,190.58,190.44,20.6775194]
[1734990889606,22.63606491,190.58,190.5,21.65219105]
[1734990891918,0.98387386,190.58,190.52,21.65219105]
[1734990892426,20.0,190.57,190.52,21.65219105]
[1734990892606,0.98409841,190.56,190.52,21.65219105]
[1734990892809,20.0,190.57,190.52,21.65219105]
[1734990893112,0.98405724,190.56,190.52,21.65219105]
[1734990893816,0.98405724,190.56,190.5,21.65219105]
[1734990894188,0.98405724,190.56,190.5,13.55321967]
[1734990894388,0.98405724,190.56,190.52,13.55321967]
[1734990897114,0.98405724,190.56,190.5,13.55321967]
[1734990897412,0.98405724,190.56,190.52,13.55321967]
[1734990898614,0.98405724,190.56,190.5,13.55321967]
[1734990900410,0.98407973,190.57,190.52,13.55321967]